Cogmind - Beta 13 X2 @@@ ROGUE MODE // 2024.02.12 @ 02:16:52 Player: Jezoensis Result: Self-destructed Performance ------------- Evolutions (8) 4000 Regions Visited (31) 6200 Robots Destroyed (353) 1765 Value Destroyed (15476) 15476 Prototype IDs (48) 960 Alien Tech Used (5) 1000 Bonus (15093) 15093 TOTAL SCORE: 44494 Bonus ------- High Alert Combat Kills 2178 Follower Combat Kills 1058 Entered Garrisons 400 Used RIF Installer 1000 Network Hubs Disabled 400 Met Data Miner 300 Met Zhirov 300 Met Warlord at Base 500 MAIN.C Attacked Warlord 500 Warlord Defense Kills 1008 A7 Reached Mainframe 300 Met R17 at Cetus 500 Used Core Reset Matrix 3000 Met Warlord at Research 2000 Invited to Help at Command 2000 Friendly Fire -351 Cogmind --------- Core Integrity 1360/1450 Matter 275/300 Energy 575/575 System Corruption 0% Temperature Cool (0) Movement Treading (152) Location -2/Quarantine Parts ------- > --- POWER (2) -------- Antimatter Reactor Quantum Reactor > --- PROPULSION (4) --- Biometal Heavy Treads Advanced Heavy Siege Treads > --- UTILITY (13) ----- High-capacity Storage Unit Machine Analyzer Experimental Optical Array Advanced Signal Interpreter Experimental Targeting Computer Advanced Target Analyzer Experimental Core Analyzer Centrium Medium Armor Plating Improved Focal Shield Advanced Force Field Hacking Suite > --- WEAPON (5) ------- KE Penetrator KE Penetrator Railgun Advanced KE Penetrator Advanced KE Penetrator > --- INVENTORY (20) --- Light Quantum Reactor Biometal Heavy Treads Improved Matter Compressor (300) Structural Scanner Advanced Sensor Array Long-range Sensor Array Seismic Detector Improved Kinecellerator Transmission Jammer Advanced Thermal Shield Advanced Force Field Long-range Tractor Beam Compact HERF Cannon Core Cannon KE Penetrator Railgun Hellfire Missile Launcher Power Sword Peak State ------------ > --- POWER ------------ Antimatter Reactor Quantum Reactor > --- PROPULSION ------- Biometal Heavy Treads Advanced Heavy Siege Treads > --- UTILITY ---------- High-capacity Storage Unit Machine Analyzer Experimental Optical Array Long-range Sensor Array Advanced Signal Interpreter Experimental Targeting Computer Advanced Target Analyzer Experimental Core Analyzer Transmission Jammer Centrium Medium Armor Plating Advanced Force Field Hacking Suite Relay Coupler [NC] > --- WEAPON ----------- KE Penetrator Enhanced Coil Gun Railgun Advanced KE Penetrator Advanced KE Penetrator > --- INVENTORY -------- Light Quantum Reactor Biometal Heavy Treads Improved Matter Compressor Structural Scanner Advanced Sensor Array Seismic Detector Improved Kinecellerator Makeshift Cloaking Device Improved Focal Shield Advanced Thermal Shield Advanced Force Field Long-range Tractor Beam Core Reset Matrix Compact HERF Cannon Core Cannon Railgun Hellfire Missile Launcher Power Sword [Rating: 174] Favorites ----------- Power Vortex Chain Reactor Engine Cooled Ion Engine Power Core Fission Core Reactor Vortex Chain Reactor Propulsion Centrium Heavy Treads Treads Centrium Heavy Treads Leg Flexi-carbon Leg Wheel Wheel Hover Unit Hover Unit Utility High-capacity Storage Unit Device Structural Scanner Storage High-capacity Storage Unit Processor Advanced Signal Interpreter Hackware Hacking Suite Protection Improved Utility Shielding Weapon Advanced KE Penetrator Energy Gun Gatling Laser Energy Cannon Plasma Cannon Ballistic Gun Advanced KE Penetrator Ballistic Cannon Assault Cannon Launcher Heavy Rocket Launcher Special Weapon Mining Laser Impact Weapon Makeshift Hammer Slashing Weapon Power Sword Build | -11 -10 -10 -9 -9 -8 -7 -7 -7 -7 -6 -6 -6 -6 -6 -6 -5 -5 -5 -5 -4 -4 -4 -4 -4 -3 -3 -3 -3 -3 -2 -2 ------- Run | Yrd Mat Min Mat Min Mat Fac Low Low Dat Pro Fac Ext Cet Arc Hub Fac Upp Upp War Pro Fac Upp Upp Zhi Pro Res Gar Res Gar Res Qua Slots Evolved 16 | . . . 2 . 2 2 . . . . 2 . . . . 2 . . . . 2 . . . . 2 . . . 2 . Power 1 | . . . . . . . . . . . . . . . . . . . . . 1 . . . . . . . . . . Propulsion 2 | . . . 1 . . . . . . . 1 . . . . . . . . . . . . . . . . . . . . Utility 10 | . . . 1 . 2 1 . . . . 1 . . . . 1 . . . . 1 . . . . 2 . . . 1 . Weapon 3 | . . . . . . 1 . . . . . . . . . 1 . . . . . . . . . . . . . 1 . Parts Attached 670 | 8 9 2 24 3 31 101 4 7 2 10 28 61 19 4 46 43 9 15 8 4 18 3 2 2 . 29 13 63 20 60 22 Power 26 | 1 . 1 2 . 4 5 . . . . 3 2 1 . 1 2 . . 1 . 1 . . . . . . . . 2 . Engine 16 | 1 . 1 2 . 4 4 . . . . 2 2 . . . . . . . . . . . . . . . . . . . Core 3 | . . . . . . 1 . . . . 1 . 1 . . . . . . . . . . . . . . . . . . Reactor 7 | . . . . . . . . . . . . . . . 1 2 . . 1 . 1 . . . . . . . . 2 . Propulsion 75 | 3 3 . 5 2 7 12 1 1 . . 8 14 7 . 4 2 . . . . . . . . . . . 1 2 1 2 Treads 30 | . 1 . 3 . 2 1 1 . . . . 3 7 . 4 2 . . . . . . . . . . . 1 2 1 2 Leg 20 | . . . . . 4 6 . . . . 5 5 . . . . . . . . . . . . . . . . . . . Wheel 24 | 3 2 . 2 2 1 5 . 1 . . 3 5 . . . . . . . . . . . . . . . . . . . Hover 1 | . . . . . . . . . . . . 1 . . . . . . . . . . . . . . . . . . . Flight . | . . . . . . . . . . . . . . . . . . . . . . . . . . . . . . . . Utility 391 | 2 1 1 6 1 12 63 1 4 . 3 14 28 4 2 29 26 6 15 7 3 13 3 2 2 . 17 10 47 11 46 12 Device 289 | 2 . 1 3 . 10 52 . 3 . 1 9 13 2 1 20 18 6 12 4 3 11 3 1 1 . 11 9 38 10 37 8 Storage 6 | . 1 . 1 . . 1 . . . . . 1 . . . . . . . . . . . . . . . 2 . . . Processor 24 | . . . 2 1 2 4 . . . 1 1 3 . . 1 2 . . 2 . . . . . . 2 . . 1 1 1 Hackware 4 | . . . . . . . . . . . 1 1 . . . . . . . . . . . . . 1 . . . 1 . Protection 68 | . . . . . . 6 1 1 . 1 3 10 2 1 8 6 . 3 1 . 2 . 1 1 . 3 1 7 . 7 3 Artifact . | . . . . . . . . . . . . . . . . . . . . . . . . . . . . . . . . Weapon 178 | 2 5 . 11 . 8 21 2 2 2 7 3 17 7 2 12 13 3 . . 1 4 . . . . 12 3 15 7 11 8 Energy Gun 32 | 1 1 . 6 . 4 7 . . . . 1 5 1 1 4 1 . . . . . . . . . . . . . . . Energy Cannon 28 | . . . 1 . 2 4 1 . 2 2 2 6 3 . 1 . . . . . . . . . . . . 2 . 1 1 Ballistic Gun 50 | 1 1 . 3 . . 3 . . . . . . . . 5 4 2 . . . 1 . . . . 7 2 8 2 6 5 Ballistic Cannon 4 | . . . . . . 4 . . . . . . . . . . . . . . . . . . . . . . . . . Launcher 26 | . . . 1 . 2 2 . 1 . 3 . 3 2 1 2 2 . . . . 1 . . . . 1 1 . 2 2 . Special Weapon 3 | . 3 . . . . . . . . . . . . . . . . . . . . . . . . . . . . . . Impact Weapon 10 | . . . . . . . 1 1 . 2 . 1 1 . . 4 . . . . . . . . . . . . . . . Slashing Weapon 25 | . . . . . . 1 . . . . . 2 . . . 2 1 . . 1 2 . . . . 4 . 5 3 2 2 Piercing Weapon . | . . . . . . . . . . . . . . . . . . . . . . . . . . . . . . . . Special Melee Weapon . | . . . . . . . . . . . . . . . . . . . . . . . . . . . . . . . . Unidentified Prototypes 23 | . . . 1 . 2 2 . . . . . . 2 . 2 2 . . 3 . 1 . 1 3 . 1 . 1 . 1 1 Corrupted Parts 13 | . . 1 . . 1 . . . . . . . 2 . 9 . . . . . . . . . . . . . . . . System Corruption 81 | . . 1 . . 1 . . . . . . . 10 . 69 . . . . . . . . . . . . . . . . Parts Lost 73 | . 2 2 6 . 6 28 . 1 . . 5 18 . . 1 1 . . 1 . . . . . . . . 1 . . 1 Power 6 | . . . . . 1 4 . . . . . 1 . . . . . . . . . . . . . . . . . . . Propulsion 31 | . 1 . 3 . 4 10 . 1 . . 3 8 . . . 1 . . . . . . . . . . . . . . . Utility 19 | . . 1 1 . . 7 . . . . 2 5 . . . . . . 1 . . . . . . . . 1 . . 1 Weapon 17 | . 1 1 2 . 1 7 . . . . . 4 . . 1 . . . . . . . . . . . . . . . . Highest Loss Streak 11 | . 2 2 4 . 5 9 . 1 . . 4 11 . . 1 1 . . 1 . . . . . . . . 1 . . 1 To Critical Strikes 1 | . . . . . . . . . . . . . . . . 1 . . . . . . . . . . . . . . . Average Slot Usage (%) 89 | . 99 100 99 100 97 97 97 99 86 100 96 84 91 86 85 87 88 88 87 88 84 84 84 82 85 85 86 85 86 89 90 Engine 2 | . 14 14 11 11 8 6 7 7 7 7 5 5 1 . . . . . . . . . . . . . . . . . . Reactor 2 | . . . . . . . . . . . . . . . . 5 5 5 5 5 5 5 5 5 5 4 4 4 4 6 8 Treads 8 | . 1 . 17 11 8 2 5 7 7 7 4 1 13 13 13 10 11 11 11 11 10 10 10 10 10 9 9 8 9 8 7 Leg 2 | . . . . . 6 6 . . . . 11 9 3 . . . . . . . . . . . . . . . . . . Wheel 4 | . 25 28 15 22 10 12 16 14 15 15 9 11 1 . . . . . . . . . . . . . . . . . . Device 15 | . 21 14 11 . 9 13 15 13 15 14 12 9 6 10 10 13 11 9 14 17 20 21 20 17 20 21 18 21 15 19 16 Storage 5 | . 6 14 11 11 9 7 7 7 7 7 6 4 6 6 6 5 5 5 5 5 5 5 5 5 5 4 4 4 4 4 4 Processor 16 | . . . 9 22 26 21 15 15 15 15 13 7 13 13 16 14 17 17 18 17 15 15 15 15 15 17 18 18 22 20 23 Hackware 3 | . . . . . . . . . . . 5 5 6 6 6 5 5 5 5 . . . . . . 4 4 4 4 5 8 Protection 4 | . . . . . . 2 7 8 7 7 5 7 12 8 5 5 5 6 1 5 5 5 9 10 10 5 9 4 6 2 . Energy Gun 3 | . 14 14 13 11 5 8 . . . . 2 9 6 4 11 . . . . . . . . . . . . . . . . Energy Cannon 2 | . . . . . 7 6 12 15 2 14 11 3 3 13 7 . . . . . . . . . . . . . . . . Ballistic Gun 10 | . 6 . 8 11 2 3 . . . . . . . . . 17 12 23 23 20 16 15 15 15 15 13 16 14 13 19 18 Slashing Weapon 1 | . . . . . . . 2 . . . . 3 . . . 2 4 . . 2 4 5 5 5 5 3 . 2 3 . 1 Naked Turns 74 | . . . . . . . . . . . . 74 . . . . . . . . . . . . . . . . . . . Heaviest Build 134 | 7 16 18 36 35 38 70 74 84 74 87 87 81 85 83 86 95 95 97 86 80 112 102 109 109 109 126 128 128 124 134 129 Greatest Support 160 | 20 20 20 26 26 46 51 36 32 32 32 60 55 160 160 160 160 150 150 150 150 150 150 150 150 150 150 150 160 160 155 155 Greatest Overweight (x) 5 | . . . 3 1 3 4 2 2 2 2 4 5 5 . . . . . . . . . . . . . . . . . . Average Overweight (x) . | . . . 1 1 . 1 1 2 1 2 1 1 1 . . . . . . . . . . . . . . . . . . Largest Inventory Capacity 20 | 5 10 10 15 15 15 20 20 20 20 20 20 20 20 20 20 20 20 20 20 20 20 20 20 20 20 20 20 20 20 20 20 Average Capacity 18 | 5 7 10 12 15 15 16 20 20 20 20 20 17 20 20 20 20 20 20 20 20 20 20 20 20 20 20 20 20 20 20 20 Most Carried 20 | 5 10 10 15 15 15 20 20 20 20 20 20 20 20 20 20 20 20 20 20 20 20 20 20 20 20 20 20 20 20 20 20 Average Carried 17 | 4 6 9 10 14 13 14 19 19 20 19 18 15 19 20 19 19 19 20 19 18 19 19 19 20 20 19 19 19 19 19 19 Final Capacity 20 | 5 10 10 15 15 15 20 20 20 20 20 20 20 20 20 20 20 20 20 20 20 20 20 20 20 20 20 20 20 20 20 20 Final Carried 20 | 5 10 9 15 15 12 19 20 20 20 20 18 20 20 20 20 19 20 20 20 19 19 20 20 20 20 20 20 18 20 20 20 Class Distribution -------------------- 35% | Scavenger-Assassin 33% | Scavenger-Skirmisher 8% | Scavenger-Tank 6% | Mutant 6% | Scavenger-Mutant 4% | Scavenger-Gunner Dominant Class ---------------- Mutant | -10/Materials Scavenger-Mutant | -10/Mines Mutant | -9/Materials Mutant | -9/Mines Scavenger-Skirmisher | -8/Materials Scavenger-Skirmisher | -7/Factory Scavenger-Assassin | -7/Lower Caves Scavenger-Assassin | -7/Lower Caves Scavenger-Assassin | -7/Data Miner Scavenger-Assassin | -6/Proximity Caves Derelict-Assassin | -6/Factory Scavenger-Mutant | -6/Extension Scavenger-Tank | -6/Cetus Scavenger-Skirmisher | -6/Archives Scavenger-Skirmisher | -6/Hub_04(d) Scavenger-Assassin | -5/Factory Scavenger-Assassin | -5/Upper Caves Scavenger-Skirmisher | -5/Upper Caves Scavenger-Skirmisher | -5/Warlord Scavenger-Skirmisher | -4/Proximity Caves Scavenger-Assassin | -4/Factory Scavenger-Assassin | -4/Upper Caves Scavenger-Assassin | -4/Upper Caves Scavenger-Assassin | -4/Zhirov Scavenger-Assassin | -3/Proximity Caves Scavenger-Assassin | -3/Research Scavenger-Tank | -3/Garrison Scavenger-Assassin | -3/Research Scavenger-Tank | -3/Garrison Scavenger-Skirmisher | -2/Research Scavenger-Assassin | -2/Quarantine Resources | -11 -10 -10 -9 -9 -8 -7 -7 -7 -7 -6 -6 -6 -6 -6 -6 -5 -5 -5 -5 -4 -4 -4 -4 -4 -3 -3 -3 -3 -3 -2 -2 ----------- Run | Yrd Mat Min Mat Min Mat Fac Low Low Dat Pro Fac Ext Cet Arc Hub Fac Upp Upp War Pro Fac Upp Upp Zhi Pro Res Gar Res Gar Res Qua Matter Collected 12862 | 229 143 12 314 36 441 1262 178 66 . 59 533 579 268 60 543 745 238 232 282 64 708 . 74 . 80 536 355 1685 893 1856 391 Remotely 4574 | . . . . . . 111 . . . . . . . . 386 340 144 154 195 . 168 . . . . 283 195 967 346 1193 92 Salvage Created 17329 | 34 172 22 873 43 789 1769 109 79 . 76 858 792 546 843 916 884 134 632 469 . 1317 . . . 27 661 297 1734 666 1953 634 Parts 853 | 9 15 2 50 5 45 87 5 6 . 9 17 38 17 35 42 47 3 20 29 . 65 . . . 2 35 18 97 32 88 35 Haulers Intercepted 9 | . 1 . 2 . 2 3 . . . . . . . . . 1 . . . . . . . . . . . . . . . Recyclers Shooed 16 | 1 . . 2 . . 3 . . . . 2 2 . . . 1 . . . . . . . . . 2 . 2 . . 1 Parts Field Recycled . | . . . . . . . . . . . . . . . . . . . . . . . . . . . . . . . . Retrieved Matter . | . . . . . . . . . . . . . . . . . . . . . . . . . . . . . . . . Parts Self-Destructed 35 | . . . . . . . . 5 . 8 . . . . . . . 20 . . . . . . 2 . . . . . . Prevented 3 | . . . . . . . 1 . . . . . . . . . 2 . . . . . . . . . . . . . . Kills | -11 -10 -10 -9 -9 -8 -7 -7 -7 -7 -6 -6 -6 -6 -6 -6 -5 -5 -5 -5 -4 -4 -4 -4 -4 -3 -3 -3 -3 -3 -2 -2 ------- Run | Yrd Mat Min Mat Min Mat Fac Low Low Dat Pro Fac Ext Cet Arc Hub Fac Upp Upp War Pro Fac Upp Upp Zhi Pro Res Gar Res Gar Res Qua Combat Hostiles Destroyed 249 | . 2 . 17 2 16 27 . 4 . 7 6 12 6 14 15 12 1 10 9 . 10 . . . 2 5 5 19 12 29 7 Guns 145 | . 2 . 12 2 2 11 . . . . . 5 . . 8 9 1 10 9 . 6 . . . 1 5 3 19 8 25 7 Cannons 18 | . . . . . 3 9 . 1 . . 3 1 . . 1 . . . . . . . . . . . . . . . . AOE 68 | . . . 5 . 10 4 . 3 . 7 . 2 1 14 5 3 . . . . 4 . . . . . 2 . 4 4 . Classes Destroyed 25 | 1 4 1 3 . 4 2 1 . . 1 1 2 . . . . . . 1 . . . . . . . . . . 4 . Worker 25 | . . 1 . . 1 4 . . . . 3 2 . . 7 1 . . . . 3 . . . . . . 1 . 2 . Builder 17 | . 1 . 1 . . 5 . . . . 1 . . . . . . . . . 5 . . . . . . 2 . 2 . Tunneler 7 | 2 . . . 1 . 1 . . . . . 1 . . . 2 . . . . . . . . . . . . . . . Hauler 9 | . 1 . 2 . 2 3 . . . . . . . . . 1 . . . . . . . . . . . . . . . Recycler 23 | . . . 1 . 1 5 . . . . 3 1 . . 1 1 . . . . 4 . . . . 2 . 3 . . 1 Carrier 1 | . . . . . . . . . . . . . . . . . . . . . . . . . . . . . . 1 . Mechanic 1 | . . . . . 1 . . . . . . . . . . . . . . . . . . . . . . . . . . Operator 5 | . . . . . . . . . . . . 1 . . 1 . . . . . 2 . . . . . . . . 1 . Drone 4 | . . . . . . . . . . 2 . . . . . . . . . . . . . . 2 . . . . . . Watcher 16 | . 1 . 1 . 3 1 . . . . . 1 2 . 2 . . . . . 2 . . . . 1 . 1 . 1 . Swarmer 52 | . . . 2 2 4 4 . 3 . 5 . 2 . . 7 4 . 1 . . 4 . . . . . . 2 4 8 . Grunt 81 | . 2 . 10 . 7 10 . 1 . . 3 1 . 8 4 5 1 8 3 . 4 . . . . . 4 2 6 2 . Brawler 4 | . . . . . 1 2 . . . . . . . . . . . . 1 . . . . . . . . . . . . Duelist 5 | . . . . . . 3 . . . . . . . . . . . . 1 . . . . . . . . 1 . . . Protector 2 | . . . . . . . . . . . . . . . . . . . 2 . . . . . . . . . . . . Sentry 30 | . . . 5 . 1 2 . . . . . 7 . 3 3 1 . 1 . . 1 . . . . 1 . 3 . 2 . Demolisher 2 | . . . . . . . . . . . . . . . . . . . . . . . . . . . . . . 2 . Specialist 6 | . . . . . 2 . . . . . 2 . . . . . . . . . . . . . . . . 2 . . . Hunter 16 | . . . . . 1 1 . . . . . . . 3 . 1 . . . . . . . . . . . . 2 6 2 Programmer 32 | . . . . . . 5 . . . . . 1 . . 1 1 . . 2 . 1 . . . . 4 . 9 . 3 5 Heavy 1 | . . . . . . . . . . . 1 . . . . . . . . . . . . . . . . . . . . Behemoth 2 | . . . . . . . . . . . . 1 . . . . . . . . . . . . . . 1 . . . . Cetus Guard 6 | . . . . . . . . . . . . . 6 . . . . . . . . . . . . . . . . . . Striker 4 | . . . . . . . . . . . . . . . . . . . . . . . . . . . . . . 4 . Executioner 2 | . . . . . . . . . . . . . . . . . . . . . . . . . . . . . . 2 . Samaritan 4 | . . . . . . . 2 . . . . . . . . . 2 . . . . . . . . . . . . . . Best Kill Streak 10 | 2 3 1 5 2 7 7 . 3 . 3 3 4 4 9 7 5 1 4 4 . 7 . . . 1 3 2 4 5 10 3 Combat Bots Only 9 | . 2 . 4 2 6 5 . 3 . 3 3 2 3 9 4 5 1 4 4 . 4 . . . 1 2 2 3 5 9 3 Max Kills in Single Turn 7 | 1 1 1 3 1 4 3 1 3 . 3 1 2 2 4 7 3 1 2 3 . 3 . . . 1 1 2 2 4 4 2 Gunslinging 2 | . . . . . . . . . . . . . . . . . . 1 1 . . . . . . . . . . 2 1 Exploded 4 | . . . 2 . 3 2 . 3 . 3 . 2 1 4 3 3 . . . . 3 . . . . . 1 . 4 3 . Melee . | . . . . . . . . . . . . . . . . . . . . . . . . . . . . . . . . Uniques/NPCs Destroyed . | . . . . . . . . . . . . . . . . . . . . . . . . . . . . . . . . Combat | -11 -10 -10 -9 -9 -8 -7 -7 -7 -7 -6 -6 -6 -6 -6 -6 -5 -5 -5 -5 -4 -4 -4 -4 -4 -3 -3 -3 -3 -3 -2 -2 -------- Run | Yrd Mat Min Mat Min Mat Fac Low Low Dat Pro Fac Ext Cet Arc Hub Fac Upp Upp War Pro Fac Upp Upp Zhi Pro Res Gar Res Gar Res Qua Hostile Shots Fired 1430 | . 28 . 76 7 91 347 . 5 . 10 27 219 8 37 107 47 . 24 5 . 24 . . . . 25 12 104 84 118 25 Missed 414 | . 6 . 18 2 38 117 . . . 4 6 85 1 12 25 14 . 6 1 . 5 . . . . 5 5 22 20 18 4 Damage Taken 14492 | . 312 119 721 40 920 2998 . 73 . 161 387 1780 140 1194 1108 586 . 339 72 . 302 . . . . 282 73 1033 412 1217 223 Core 1581 | . 60 . 170 13 187 382 . 16 . . . 340 26 92 32 23 . 22 . . 18 . . . . 13 . 39 58 90 . Absorbed by Shields 3286 | . . . . . . 148 . . . . . 106 39 . . . . . . . . . . . . 196 75 870 434 1184 234 Reduced by Siege Mode 463 | . . . . . . . . . . . . . . 42 113 40 . 5 . . 11 . . . . 10 . 36 48 158 . Redirected to Shielding 230 | . . . . . . . . . . . . . . . 8 . . . 21 . . . . . . 40 11 94 21 35 . Ignored by Resistances 934 | . . . . . . . . . . 14 44 74 . . . . . . . . 71 . . . . 18 5 29 173 483 23 Regen/Repaired (Parts) 112 | . . . . . . . . . . . . . . . . . . . 112 . . . . . . . . . . . . Core Remaining (%) 73 | 100 . 76 . 54 66 . . . . 43 . . . . 42 . . . . 95 . . . . 91 . . . 91 . . Volleys Fired 575 | 3 23 1 42 5 44 108 . 3 . 8 20 36 4 9 32 21 7 7 13 5 24 . 2 . 3 17 11 45 22 51 9 Largest 5 | 2 2 1 2 2 2 3 . 2 . 1 3 3 2 2 3 4 4 4 4 4 4 . 1 . 3 4 4 4 4 5 5 Hottest 309 | 60 100 40 90 79 136 225 . 160 . 39 235 235 78 160 309 135 135 135 135 135 135 . 35 . 105 135 133 133 133 168 168 Shots Fired 1564 | 6 40 1 80 10 76 260 1 5 . 7 52 95 9 10 82 63 10 28 43 13 76 . 2 . 9 62 33 147 69 232 43 Gun 1247 | 6 36 1 77 10 38 124 . . . . 16 78 . . 56 61 10 28 43 13 73 . 2 . 9 62 29 140 65 227 43 Cannon 247 | . . . . . 28 130 1 4 . . 36 15 1 2 22 . . . . . . . . . . . . 7 . 1 . Launcher 66 | . . . 3 . 10 6 . 1 . 7 . 2 8 8 4 2 . . . . 3 . . . . . 4 . 4 4 . Special 4 | . 4 . . . . . . . . . . . . . . . . . . . . . . . . . . . . . . Kinetic 957 | 3 9 . 33 5 22 80 . . . . . . . . . 61 10 28 43 13 73 . 2 . 9 62 29 140 65 227 43 Thermal 484 | 3 23 1 8 5 32 174 1 4 . . 52 93 1 2 78 . . . . . . . . . . . . 7 . . . Explosive 50 | . . . 3 . 10 6 . 1 . 7 . 2 . . 4 2 . . . . 3 . . . . . 4 . 4 4 . Electromagnetic 73 | . 8 . 36 . 12 . . . . . . . 8 8 . . . . . . . . . . . . . . . 1 . Robot Hit Streak 45 | 2 15 5 19 6 14 15 . 9 . 1 10 10 2 7 30 27 2 10 11 . 23 . . . 1 16 12 43 35 41 45 Robot Miss Streak 6 | 1 2 . 6 1 4 3 . . . 1 3 3 1 2 4 2 2 1 2 . 2 . . . 3 4 1 2 1 5 1 Penetration Max 1 | . . . . . . . . . . . . . . . . 1 . . 1 . 1 . . . . . 1 1 1 1 . Secondary Targets 27 | . . . 1 . . 2 . . . . . . . . 1 1 . 5 1 . 1 . . . . 1 . 3 2 8 1 Max Gunslinging Chain 2 | . . . 1 . . 1 . . . . . . . . 1 1 . 1 1 . 1 . . . . 1 . 1 1 2 1 Shots Hit Robots 1065 | 4 26 1 57 8 52 164 3 4 . 1 40 79 2 7 51 48 5 23 22 . 53 . . . 1 50 18 99 55 167 25 Core Hits 628 | 3 9 1 43 3 39 82 2 6 . 7 13 41 11 40 52 21 2 14 23 . 31 . . . 1 18 10 49 30 62 15 Critical Kills 58 | 1 . . . . . 1 . . . . 1 . . . 1 5 . 4 2 . 3 . . . . 2 1 10 3 20 4 Critical Parts Destroyed 65 | . . . . . . . . . . . . . . . . 4 . 2 2 . 4 . . . . 6 1 10 9 23 4 Critical Strikes 146 | 1 . . . . 2 5 . . . . 1 5 . . 1 11 . 6 6 . 8 . . . . 9 2 23 12 46 8 Burn 6 | . . . . . 2 2 . . . . . 2 . . . . . . . . . . . . . . . . . . . Meltdown 3 | . . . . . . 1 . . . . 1 . . . 1 . . . . . . . . . . . . . . . . Destroy 130 | 1 . . . . . . . . . . . . . . . 11 . 6 6 . 8 . . . . 8 2 22 12 46 8 Blast 2 | . . . . . . 2 . . . . . . . . . . . . . . . . . . . . . . . . . Sever 5 | . . . . . . . . . . . . 3 . . . . . . . . . . . . . 1 . 1 . . . Melee Attacks 147 | . . . . . . 3 3 . . 2 10 10 7 . . 18 6 . . 2 21 1 2 . . 23 3 18 7 3 8 Impact 25 | . . . . . . . . . . 2 10 1 7 . . 5 . . . . . . . . . . . . . . . Slashing 122 | . . . . . . 3 3 . . . . 9 . . . 13 6 . . 2 21 1 2 . . 23 3 18 7 3 8 Piercing . | . . . . . . . . . . . . . . . . . . . . . . . . . . . . . . . . Sneak Attacks 30 | . . . . . . 1 3 . . . 3 3 . . . 5 3 . . . 7 . . . . 2 . 1 . . 2 Combat Hostiles . | . . . . . . . . . . . . . . . . . . . . . . . . . . . . . . . . Follow-up Attacks . | . . . . . . . . . . . . . . . . . . . . . . . . . . . . . . . . Damage Inflicted 41776 | 44 313 11 1301 139 1995 4444 326 272 . 370 1278 2663 789 2477 2656 2139 325 819 1165 . 2713 . . . 26 1584 1018 3983 2301 5735 890 Guns 24963 | 44 313 11 886 139 480 1663 . . . . 268 1678 . . 1076 1408 71 819 1151 . 1877 . . . 26 1366 593 3851 1424 5118 701 Cannons 3967 | . . . . . 456 2136 . 109 . . 597 265 . 51 353 . . . . . . . . . . . . . . . . Explosions 9776 | . . . 415 . 1059 561 . 163 . 370 . 282 789 2426 1227 273 . . . . 292 . . . . . 425 . 877 617 . Melee 2999 | . . . . . . 84 326 . . . 413 405 . . . 458 254 . . . 539 . . . . 217 . 114 . . 189 Ramming 71 | . . . . . . . . . . . . 33 . . . . . . 14 . 5 . . . . 1 . 18 . . . Kinetic 20128 | 9 52 . 345 51 219 1047 . . . . . . . . . 1408 71 819 1151 . 1877 . . . 26 1366 593 3851 1424 5118 701 Thermal 9583 | 35 156 11 193 88 544 2752 . 109 . . 865 1943 . 1458 1429 . . . . . . . . . . . . . . . . Explosive 5596 | . . . 253 . 1023 561 . 163 . 370 . 282 . . 460 273 . . . . 292 . . . . . 425 . 877 617 . Electromagnetic 3399 | . 105 . 510 . 209 . . . . . . . 789 1019 767 . . . . . . . . . . . . . . . . Impact 600 | . . . . . . . . . . . 413 80 . . . 107 . . . . . . . . . . . . . . . Slashing 2399 | . . . . . . 84 326 . . . . 325 . . . 351 254 . . . 539 . . . . 217 . 114 . . 189 Piercing . | . . . . . . . . . . . . . . . . . . . . . . . . . . . . . . . . Highest Corruption 82 | . . 1 3 3 3 15 15 15 15 15 1 1 11 11 82 . . . 5 5 . . . . . 1 . 8 10 2 3 Average Corruption 6 | . . 1 2 3 2 8 15 15 15 15 1 1 9 11 17 . . . 5 5 . . . . . 1 . 2 9 1 2 Corruption Purged 11 | . . . . . . . . . . . . . . . . . . . . . . . . . . 1 . 7 . 3 . Corruption Blocked 2 | . . . . . . . . . . . . . . . . . . . . . . . . . . . . . . 2 . Effects 238 | . . . . 3 2 74 9 12 4 14 3 8 10 4 37 . . . . 13 . . . . . 1 . 14 19 6 5 Message Errors 49 | . . . . 1 2 16 3 4 . 4 . 2 2 1 4 . . . . 5 . . . . . . . . 4 1 . Matter Fused 54 | . . . . 1 . 14 1 5 2 2 . 1 1 1 12 . . . . 4 . . . . . . . 5 3 1 1 Heat Flow Errors 30 | . . . . . . 11 1 1 . 3 1 1 3 1 1 . . . . . . . . . . 1 . 1 1 2 2 Energy Discharges 32 | . . . . . . 7 . . 1 1 1 2 . . 9 . . . . 2 . . . . . . . 2 6 . 1 Parts Rejected 5 | . . . . . . 5 . . . . . . . . . . . . . . . . . . . . . . . . . Parts Fused 1 | . . . . . . . . . . . . . 1 . . . . . . . . . . . . . . . . . . Data Loss (minor) 29 | . . . . 1 . 7 1 1 1 2 1 1 2 1 4 . . . . . . . . . . . . 4 1 2 . Data Loss (major) 13 | . . . . . . 5 2 1 . 1 . . . . 2 . . . . 1 . . . . . . . . 1 . . Misfires 12 | . . . . . . 5 1 . . . . . 1 . 1 . . . . 1 . . . . . . . 2 . . 1 Alerts 1 | . . . . . . . . . . . . . . . . . . . . . . . . . . . . . 1 . . Misdirections 1 | . . . . . . . . . . . . . . . 1 . . . . . . . . . . . . . . . . Weapon Failures 11 | . . . . . . 4 . . . 1 . 1 . . 3 . . . . . . . . . . . . . 2 . . Overload Shots 1 | . . . . . . . . . . . . . . . 1 . . . . . . . . . . . . . . . . Overflow Damage 1569 | . . . . . 32 141 86 . . 27 265 104 30 16 96 236 74 . . . 178 . . . . 58 11 1 45 40 129 Projectiles 80 | . . . . . . 57 . . . . 12 . . . 11 . . . . . . . . . . . . . . . . Explosions 366 | . . . . . 32 24 . . . 27 . 16 30 16 85 40 . . . . . . . . . . 11 . 45 40 . Melee 1123 | . . . . . . 60 86 . . . 253 88 . . . 196 74 . . . 178 . . . . 58 . 1 . . 129 Knockbacks 4 | . . . . . . 4 . . . . . . . . . . . . . . . . . . . . . . . . . Impact . | . . . . . . . . . . . . . . . . . . . . . . . . . . . . . . . . Kinetic 4 | . . . . . . 4 . . . . . . . . . . . . . . . . . . . . . . . . . Secondary . | . . . . . . . . . . . . . . . . . . . . . . . . . . . . . . . . Self-Inflicted Damage 784 | . . . 46 . 89 254 . . . 84 . 16 . 31 227 . . . . . . . . . . . . . . 37 . Shots 18 | . . . 2 . 3 5 . . . 2 . . . 2 3 . . . . . . . . . . . . . . 1 . Rammed 6 | . . . . . . . . . . . . 2 . . . . . . 1 . . . . . . 1 . 2 . . . Targets Rammed 7 | . . . . . . . . . . . . 2 . . . . . . 1 . 1 . . . . 1 . 2 . . . Kicked . | . . . . . . . . . . . . . . . . . . . . . . . . . . . . . . . . Crushed 1 | . . . . . . . . . . . . . . . . . . . . . 1 . . . . . . . . . . Highest Temperature 510 | 20 283 . 102 36 60 356 115 234 . 257 241 510 216 194 369 87 51 190 172 60 334 . . . . 145 . 209 138 223 210 Average Temperature 91 | 15 130 . 27 15 21 92 53 76 . 118 74 166 79 99 135 31 26 72 80 34 92 . . . . 95 . 31 87 25 71 Received Heat Transfer 2903 | . 177 . 249 . 324 718 . 18 . . 27 607 . 81 219 120 . 93 . . 103 . . . . 25 14 79 33 16 . Effects 16 | . 3 . . . . 6 . . . . . 4 . . 3 . . . . . . . . . . . . . . . . Shutdowns 2 | . . . . . . . . . . . . 2 . . . . . . . . . . . . . . . . . . . Energy Bleed 3 | . . . . . . 2 . . . . . . . . 1 . . . . . . . . . . . . . . . . Interference 8 | . 3 . . . . 4 . . . . . . . . 1 . . . . . . . . . . . . . . . . Matter Decay 2 | . . . . . . . . . . . . 2 . . . . . . . . . . . . . . . . . . . Short Circuit 1 | . . . . . . . . . . . . . . . 1 . . . . . . . . . . . . . . . . Siege Activations 36 | . . . . . . . . . . . . . . 1 3 1 . 3 1 . 2 . . . . 3 3 7 2 7 3 Total Turns 493 | . . . . . . . . . . . . . . 10 69 26 . 23 6 . 20 . . . . 21 52 48 64 134 20 Longest Duration 58 | . . . . . . . . . . . . . . 10 40 26 . 10 6 . 16 . . . . 8 26 15 58 24 8 Robots Corrupted 7 | . . . . . 1 . . . . . . . 6 . . . . . . . . . . . . . . . . . . Combat Hostiles 6 | . . . . . 1 . . . . . . . 5 . . . . . . . . . . . . . . . . . . Parts Fried 26 | . 1 . 2 . 1 . . . . . 6 . 12 1 1 2 . . . . . . . . . . . . . . . Impact Corruptions 9 | . . . . . . . . . . . 7 . . . . 1 . . . . . . . . . . . 1 . . . Robots Melted 11 | . . . . . . 3 . . . . 2 4 . . 2 . . . . . . . . . . . . . . . . Combat Hostiles 10 | . . . . . . 3 . . . . 2 4 . . 1 . . . . . . . . . . . . . . . . Parts Melted 42 | . . . . . 1 15 . . . . 6 13 . . 7 . . . . . . . . . . . . . . . . Heat Transferred 17856 | 75 350 25 262 185 1123 5473 . 200 . . 1750 4245 . 1400 2768 . . . . . . . . . . . . . . . . Parts Sabotaged 1 | . . . . . . . . . . . . . . . . . . . 1 . . . . . . . . . . . . Parts Stolen . | . . . . . . . . . . . . . . . . . . . . . . . . . . . . . . . . Parts Stripped . | . . . . . . . . . . . . . . . . . . . . . . . . . . . . . . . . Power Chain Reactions 12 | . . . 4 . 1 . . . . . . . . 7 . . . . . . . . . . . . . . . . . Missiles Intercepted . | . . . . . . . . . . . . . . . . . . . . . . . . . . . . . . . . Alert | -11 -10 -10 -9 -9 -8 -7 -7 -7 -7 -6 -6 -6 -6 -6 -6 -5 -5 -5 -5 -4 -4 -4 -4 -4 -3 -3 -3 -3 -3 -2 -2 ------- Run | Yrd Mat Min Mat Min Mat Fac Low Low Dat Pro Fac Ext Cet Arc Hub Fac Upp Upp War Pro Fac Upp Upp Zhi Pro Res Gar Res Gar Res Qua Peak Influence 1344 | 10 158 66 393 223 698 442 . . . . 230 353 523 1027 861 721 . . . . 379 . . . . 250 176 490 748 1344 846 Initial 693 | . 6 61 17 153 86 236 . . . . 84 24 58 209 359 421 . . . . . . . . . 150 1 99 283 420 693 Average 327 | 2 67 60 218 173 307 255 . . . . 113 113 265 563 483 590 . . . . 189 . . . . 85 93 214 509 954 503 Maximum Alert Level 4 | . . . 1 1 2 2 . . . . 1 1 2 3 3 3 . . . . 1 . . . . 1 . 2 3 4 3 Low Security (%) 42 | 100 100 100 28 75 32 21 . . . . 91 92 66 4 . . . . . . 51 . . . . 92 100 50 . . 11 Level 1 30 | . . . 71 24 28 76 . . . . 8 7 6 35 29 . . . . . 48 . . . . 7 . 45 25 . 38 Level 2 15 | . . . . . 39 2 . . . . . . 26 26 60 88 . . . . . . . . . . . 3 65 15 6 Level 3 9 | . . . . . . . . . . . . . . 34 10 11 . . . . . . . . . . . . 9 54 43 Level 4 2 | . . . . . . . . . . . . . . . . . . . . . . . . . . . . . . 30 . Level 5 . | . . . . . . . . . . . . . . . . . . . . . . . . . . . . . . . . High Security . | . . . . . . . . . . . . . . . . . . . . . . . . . . . . . . . . Max Security . | . . . . . . . . . . . . . . . . . . . . . . . . . . . . . . . . Squads Dispatched 46 | . 3 . 3 . 3 10 . . . . 3 2 . . 2 3 . . . . 2 . . . . 5 . 4 . 2 4 Investigation 10 | . 2 . 2 . . 4 . . . . . 1 . . . 1 . . . . . . . . . . . . . . . Extermination 13 | . . . . . . 3 . . . . 1 . . . 1 . . . . . 1 . . . . 3 . 2 . . 2 Reinforcement 20 | . 1 . 1 . 2 3 . . . . 2 1 . . 1 . . . . . 1 . . . . 2 . 2 . 2 2 Assault 3 | . . . . . 1 . . . . . . . . . . 2 . . . . . . . . . . . . . . . Garrison . | . . . . . . . . . . . . . . . . . . . . . . . . . . . . . . . . Intercept . | . . . . . . . . . . . . . . . . . . . . . . . . . . . . . . . . Searches Triggered . | . . . . . . . . . . . . . . . . . . . . . . . . . . . . . . . . Construction Impeded 2 | . . . 1 . . . . . . . . . . . . . . . . . . . . . . . . 1 . . . Haulers Reinforced 1 | . . . . . . 1 . . . . . . . . . . . . . . . . . . . . . . . . . Active Scanning Responses . | . . . . . . . . . . . . . . . . . . . . . . . . . . . . . . . . Cargo Convoy Interrupts . | . . . . . . . . . . . . . . . . . . . . . . . . . . . . . . . . Stealth | -11 -10 -10 -9 -9 -8 -7 -7 -7 -7 -6 -6 -6 -6 -6 -6 -5 -5 -5 -5 -4 -4 -4 -4 -4 -3 -3 -3 -3 -3 -2 -2 --------- Run | Yrd Mat Min Mat Min Mat Fac Low Low Dat Pro Fac Ext Cet Arc Hub Fac Upp Upp War Pro Fac Upp Upp Zhi Pro Res Gar Res Gar Res Qua Distress Signals 30 | . . . . . 2 1 . . . . . 3 2 . 4 . . . 1 . . . . . . . . 4 . 13 . Communications Jammed 26 | . . . . . . . . . . . . . . . . . . . . . 1 . . . 2 . . 8 . 15 . Distress Signals 22 | . . . . . . . . . . . . . . . . . . . . . . . . . . . . 7 . 15 . Times Spotted 373 | . 7 1 21 7 28 38 . 6 . 8 6 33 10 23 24 14 . 11 33 . 10 . . . 2 7 4 26 13 32 9 Peak Tracking Total 16 | . 3 1 6 3 11 6 . 3 . 3 2 5 5 16 6 4 . 4 12 . 3 . . . 2 2 1 3 6 5 2 Tactical Retreats 19 | . 1 . 1 1 3 2 . 1 . 1 . 4 . . 3 . . 1 . . . . . . . . . 1 . . . Traps | -11 -10 -10 -9 -9 -8 -7 -7 -7 -7 -6 -6 -6 -6 -6 -6 -5 -5 -5 -5 -4 -4 -4 -4 -4 -3 -3 -3 -3 -3 -2 -2 ------- Run | Yrd Mat Min Mat Min Mat Fac Low Low Dat Pro Fac Ext Cet Arc Hub Fac Upp Upp War Pro Fac Upp Upp Zhi Pro Res Gar Res Gar Res Qua Traps Triggered 8 | . . . . . . 3 . . . . . 3 . . 1 . . . . . 1 . . . . . . . . . . Indirectly . | . . . . . . . . . . . . . . . . . . . . . . . . . . . . . . . . Trap Hack Attempts . | . . . . . . . . . . . . . . . . . . . . . . . . . . . . . . . . Triggered . | . . . . . . . . . . . . . . . . . . . . . . . . . . . . . . . . Disarmed . | . . . . . . . . . . . . . . . . . . . . . . . . . . . . . . . . Reprogrammed . | . . . . . . . . . . . . . . . . . . . . . . . . . . . . . . . . Reused 2 | . . . 2 . . . . . . . . . . . . . . . . . . . . . . . . . . . . Traps Extracted . | . . . . . . . . . . . . . . . . . . . . . . . . . . . . . . . . Installed 2 | . . . 2 . . . . . . . . . . . . . . . . . . . . . . . . . . . . Triggered 12 | . . . 2 . . . 1 . . . . . . . . . 2 . 6 . . . . . 1 . . . . . . Most Traps Carried 2 | . . 2 2 . . . . . . . . . . . . . . . . . . . . . . . . . . . . Machines | -11 -10 -10 -9 -9 -8 -7 -7 -7 -7 -6 -6 -6 -6 -6 -6 -5 -5 -5 -5 -4 -4 -4 -4 -4 -3 -3 -3 -3 -3 -2 -2 ---------- Run | Yrd Mat Min Mat Min Mat Fac Low Low Dat Pro Fac Ext Cet Arc Hub Fac Upp Upp War Pro Fac Upp Upp Zhi Pro Res Gar Res Gar Res Qua Machines Disabled 37 | . . . 1 . 2 5 . . . . . 1 1 1 7 1 . . . . 3 . . . . . 2 6 3 2 2 Max in Single Turn 4 | . . . 1 . 2 4 . . . . . . . 1 3 1 . . . . 1 . . . . . 1 1 1 1 1 Garrison Access 5 | . . . . . . 1 . . . . . . . . 1 2 . . . . . . . . . . . . . 1 . Garrison Relay 1 | . . . . . . . . . . . . . . . . . . . . . . . . . . . . . 1 . . Network Hub 2 | . . . . . . . . . . . . . . . 2 . . . . . . . . . . . . . . . . Machines Repaired . | . . . . . . . . . . . . . . . . . . . . . . . . . . . . . . . . Machines Dismantled . | . . . . . . . . . . . . . . . . . . . . . . . . . . . . . . . . Machines Sabotaged . | . . . . . . . . . . . . . . . . . . . . . . . . . . . . . . . . Overloaded Fab Kills . | . . . . . . . . . . . . . . . . . . . . . . . . . . . . . . . . Hacking | -11 -10 -10 -9 -9 -8 -7 -7 -7 -7 -6 -6 -6 -6 -6 -6 -5 -5 -5 -5 -4 -4 -4 -4 -4 -3 -3 -3 -3 -3 -2 -2 --------- Run | Yrd Mat Min Mat Min Mat Fac Low Low Dat Pro Fac Ext Cet Arc Hub Fac Upp Upp War Pro Fac Upp Upp Zhi Pro Res Gar Res Gar Res Qua Machines Accessed 88 | . 4 . 11 . 2 10 . . 3 . 1 2 . . 4 8 . . 1 . 11 2 . 4 . 7 2 8 . 2 6 Terminals 54 | . 3 . 10 . 2 6 . . . . 1 2 . . 3 3 . . . . 7 . . . . 4 2 5 . 1 5 Fabricators 9 | . . . . . . 2 . . . . . . . . . 3 . . . . 2 . . . . 2 . . . . . Repair Stations . | . . . . . . . . . . . . . . . . . . . . . . . . . . . . . . . . Recycling Units 3 | . 1 . . . . . . . . . . . . . . . . . . . . . . . . . . 1 . 1 . Scanalyzers 3 | . . . 1 . . . . . . . . . . . . . . . . . . . . . . . . 1 . . 1 Garrison Access 9 | . . . . . . 2 . . . . . . . . 1 2 . . . . 2 . . . . 1 . 1 . . . Total Hacks 288 | . 12 . 33 . 5 23 . . 25 . 7 5 . . 9 38 . . 1 . 33 9 . 17 . 20 3 20 . 3 25 Successful 148 | . 5 . 10 . 4 5 . . 25 . 5 . . . 3 19 . . 1 . 14 9 . 17 . 9 2 8 . 2 10 Failed 140 | . 7 . 23 . 1 18 . . . . 2 5 . . 6 19 . . . . 19 . . . . 11 1 12 . 1 15 Catastrophic 31 | . . . 3 . . 6 . . . . . 1 . . 1 5 . . . . 1 . . . . 5 . 8 . . 1 Database Lockouts . | . . . . . . . . . . . . . . . . . . . . . . . . . . . . . . . . Manual 159 | . 9 . 23 . 4 16 . . . . 7 . 2 . 8 31 . . 1 . 22 . . . . 13 . 10 . 1 12 Terminals 183 | . 11 . 31 . 5 15 . . . . 7 5 . . 8 22 . . . . 23 . . . . 12 3 17 . 2 22 Fabricators 32 | . . . . . . 6 . . . . . . . . . 14 . . . . 5 . . . . 7 . . . . . Repair Stations . | . . . . . . . . . . . . . . . . . . . . . . . . . . . . . . . . Recycling Units 3 | . 1 . . . . . . . . . . . . . . . . . . . . . . . . . . 1 . 1 . Scanalyzers 6 | . . . 2 . . . . . . . . . . . . . . . . . . . . . . . . 1 . . 3 Garrison Access 12 | . . . . . . 2 . . . . . . . . 1 2 . . . . 5 . . . . 1 . 1 . . . Terminal Hacks 95 | . 1 . 7 . 2 1 . . 25 . 3 . . . 1 8 . . 1 . 6 9 . 17 . 4 2 2 . 1 5 Record 19 | . . . . . . . . . 6 . . . . . . . . . . . . 8 . 5 . . . . . . . Part Schematic 14 | . . . . . . . . . 10 . . . . . . . . . . . . . . 4 . . . . . . . Robot Schematic 6 | . . . . . . . . . 6 . . . . . . . . . . . . . . . . . . . . . . Robot Analysis 12 | . . . 4 . 1 . . . . . 2 . . . . 1 . . . . . . . 4 . . . . . . . Prototype ID Bank 10 | . 1 . 1 . . . . . 3 . . . . . . 1 . . . . . . . 4 . . . . . . . Open Door 2 | . . . . . . . . . . . . . . . . . . . 1 . . 1 . . . . . . . . . Branch Access Points 5 | . . . 1 . . 1 . . . . 1 . . . . 1 . . . . 1 . . . . . . . . . . Terminal Index 2 | . . . 1 . . . . . . . . . . . . 1 . . . . . . . . . . . . . . . Garrison Index 1 | . . . . . . . . . . . . . . . . . . . . . . . . . . . . . . 1 . Alert Level 2 | . . . . . . . . . . . . . . . . 1 . . . . 1 . . . . . . . . . . Unreport Threat 8 | . . . . . . . . . . . . . . . 1 1 . . . . . . . . . 2 . 1 . . 3 Locate Traps 7 | . . . . . 1 . . . . . . . . . . 2 . . . . 1 . . . . 1 . 1 . . 1 Recall Extermination 1 | . . . . . . . . . . . . . . . . . . . . . . . . . . 1 . . . . . Recall Reinforcements 2 | . . . . . . . . . . . . . . . . . . . . . 1 . . . . . . . . . 1 Registered Components 1 | . . . . . . . . . . . . . . . . . . . . . 1 . . . . . . . . . . Zone Layout 1 | . . . . . . . . . . . . . . . . . . . . . 1 . . . . . . . . . . Garrison Registry 1 | . . . . . . . . . . . . . . . . . . . . . . . . . . . 1 . . . . Patrol Navigation 1 | . . . . . . . . . . . . . . . . . . . . . . . . . . . 1 . . . . Fabricator Hacks 3 | . . . . . . . . . . . . . . . . 1 . . . . 1 . . . . 1 . . . . . Network Status 3 | . . . . . . . . . . . . . . . . 1 . . . . 1 . . . . 1 . . . . . Repair Station Hacks . | . . . . . . . . . . . . . . . . . . . . . . . . . . . . . . . . Recycling Unit Hacks . | . . . . . . . . . . . . . . . . . . . . . . . . . . . . . . . . Scanalyzer 4 | . . . 2 . . . . . . . . . . . . . . . . . . . . . . . . 1 . . 1 Insert Component 3 | . . . 1 . . . . . . . . . . . . . . . . . . . . . . . . 1 . . 1 Analyze 1 | . . . 1 . . . . . . . . . . . . . . . . . . . . . . . . . . . . Garrison Access Hacks 5 | . . . . . . 1 . . . . . . . . 1 1 . . . . . . . . . 1 . 1 . . . Unlock Access 2 | . . . . . . . . . . . . . . . . . . . . . . . . . . 1 . 1 . . . Seal Access 3 | . . . . . . 1 . . . . . . . . 1 1 . . . . . . . . . . . . . . . Unauthorized Hacks 41 | . 4 . 1 . 2 3 . . . . 2 . . . 1 9 . . . . 7 . . . . 3 . 4 . 1 4 Terminals 26 | . 3 . 1 . 2 2 . . . . 2 . . . 1 4 . . . . 4 . . . . 1 . 3 . . 3 Track 3 | . 1 . . . . . . . . . . . . . . 1 . . . . . . . . . . . . . . 1 Assimilate 1 | . . . . . . . . . . . . . . . . . . . . . 1 . . . . . . . . . . Botnet 17 | . 2 . 1 . 2 1 . . . . 1 . . . 1 2 . . . . 2 . . . . 1 . 2 . . 2 Operators 5 | . . . . . . 1 . . . . 1 . . . . 1 . . . . 1 . . . . . . 1 . . . Fabricators 9 | . . . . . . 1 . . . . . . . . . 4 . . . . 2 . . . . 2 . . . . . Liberate 1 | . . . . . . . . . . . . . . . . 1 . . . . . . . . . . . . . . . Fabnet 6 | . . . . . . 1 . . . . . . . . . 2 . . . . 2 . . . . 1 . . . . . Haulers 2 | . . . . . . . . . . . . . . . . 1 . . . . . . . . . 1 . . . . . Repair Stations . | . . . . . . . . . . . . . . . . . . . . . . . . . . . . . . . . Recycling Units 3 | . 1 . . . . . . . . . . . . . . . . . . . . . . . . . . 1 . 1 . Recyclers 2 | . . . . . . . . . . . . . . . . . . . . . . . . . . . . 1 . 1 . Tunnel 1 | . 1 . . . . . . . . . . . . . . . . . . . . . . . . . . . . . . Scanalyzers 1 | . . . . . . . . . . . . . . . . . . . . . . . . . . . . . . . 1 Researchers 1 | . . . . . . . . . . . . . . . . . . . . . . . . . . . . . . . 1 Garrison Access 2 | . . . . . . . . . . . . . . . . 1 . . . . 1 . . . . . . . . . . Watchers 1 | . . . . . . . . . . . . . . . . . . . . . 1 . . . . . . . . . . Jam 1 | . . . . . . . . . . . . . . . . 1 . . . . . . . . . . . . . . . Data Cores Recovered 2 | . . . . . . . . . . . . . . . 1 . . . . . 1 . . . . . . . . . . Used 1 | . . . . . . . . . . . . . . . 1 . . . . . . . . . . . . . . . . Hacking Detections 61 | . 3 . 11 . 2 9 . . . . 1 2 . . 3 6 . . . . 8 . . . . 6 1 3 . 1 5 Full Trace Events 12 | . 3 . 3 . 1 4 . . . . . 1 . . . . . . . . . . . . . . . . . . . Feedback Events 1 | . . . 1 . . . . . . . . . . . . . . . . . . . . . . . . . . . . Corruption 1 | . . . 1 . . . . . . . . . . . . . . . . . . . . . . . . . . . . Feedback Blocked . | . . . . . . . . . . . . . . . . . . . . . . . . . . . . . . . . Robot Schematics Acquired 6 | . . . . . . . . . 6 . . . . . . . . . . . . . . . . . . . . . . Robots Built . | . . . . . . . . . . . . . . . . . . . . . . . . . . . . . . . . Authchips . | . . . . . . . . . . . . . . . . . . . . . . . . . . . . . . . . Time . | . . . . . . . . . . . . . . . . . . . . . . . . . . . . . . . . Total Robot Build Rating . | . . . . . . . . . . . . . . . . . . . . . . . . . . . . . . . . Part Schematics Acquired 15 | . . . 1 . . . . . 10 . . . . . . . . . . . . . . 4 . . . . . . . Parts Built . | . . . . . . . . . . . . . . . . . . . . . . . . . . . . . . . . Authchips . | . . . . . . . . . . . . . . . . . . . . . . . . . . . . . . . . Time . | . . . . . . . . . . . . . . . . . . . . . . . . . . . . . . . . Total Part Build Rating . | . . . . . . . . . . . . . . . . . . . . . . . . . . . . . . . . Parts Repaired . | . . . . . . . . . . . . . . . . . . . . . . . . . . . . . . . . Time . | . . . . . . . . . . . . . . . . . . . . . . . . . . . . . . . . Parts Recycled . | . . . . . . . . . . . . . . . . . . . . . . . . . . . . . . . . Recycled Matter . | . . . . . . . . . . . . . . . . . . . . . . . . . . . . . . . . Retrieved Matter . | . . . . . . . . . . . . . . . . . . . . . . . . . . . . . . . . Retrieved Components . | . . . . . . . . . . . . . . . . . . . . . . . . . . . . . . . . Parts Scanalyzed 1 | . . . 1 . . . . . . . . . . . . . . . . . . . . . . . . . . . . Part Schematics Acquired 1 | . . . 1 . . . . . . . . . . . . . . . . . . . . . . . . . . . . Parts Damaged . | . . . . . . . . . . . . . . . . . . . . . . . . . . . . . . . . Bothacking | -11 -10 -10 -9 -9 -8 -7 -7 -7 -7 -6 -6 -6 -6 -6 -6 -5 -5 -5 -5 -4 -4 -4 -4 -4 -3 -3 -3 -3 -3 -2 -2 ------------ Run | Yrd Mat Min Mat Min Mat Fac Low Low Dat Pro Fac Ext Cet Arc Hub Fac Upp Upp War Pro Fac Upp Upp Zhi Pro Res Gar Res Gar Res Qua Used RIF Installer 2 | . . . . . . . . . . . . . . . . . . . . . . . . . . . 1 . 1 . . Watcher Feeds 1 | . . . . . . . . . . . . . . . . . . . . . . . . . . . . . 1 . . Robots Hacked 16 | . . . . . . . . . . . . 1 . 2 . . . 1 . . . . . . . . 1 3 3 5 . Non-combat . | . . . . . . . . . . . . . . . . . . . . . . . . . . . . . . . . Combat 16 | . . . . . . . . . . . . 1 . 2 . . . 1 . . . . . . . . 1 3 3 5 . Robot Hacks Applied . | . . . . . . . . . . . . . . . . . . . . . . . . . . . . . . . . Relay Couplers Released 8 | . . . . . . . . . . . . . . . 1 . . . . . . . . . . . . . 5 2 . Machine Destruction 8 | . . . . . . . . . . . . . . . 1 . . . . . . . . . . . . . 5 2 . Attached 1 | . . . . . . . . . . . . . . . . . . . . . . . . . . . . . . 1 . Fabnet Peak Effective % 7 | . . . . . . . . . . 3 3 3 3 3 3 1 1 1 1 3 3 3 3 3 7 7 7 7 7 5 5 Autooverrided 16 | . . . . . . . . . . . . 1 . 2 . . . 1 . . . . . . . . 1 3 3 5 . Robots Rewired 4 | . . . . . . . . . . . . 4 . . . . . . . . . . . . . . . . . . . Allies Hacked . | . . . . . . . . . . . . . . . . . . . . . . . . . . . . . . . . Hacks Repelled . | . . . . . . . . . . . . . . . . . . . . . . . . . . . . . . . . Allies | -11 -10 -10 -9 -9 -8 -7 -7 -7 -7 -6 -6 -6 -6 -6 -6 -5 -5 -5 -5 -4 -4 -4 -4 -4 -3 -3 -3 -3 -3 -2 -2 -------- Run | Yrd Mat Min Mat Min Mat Fac Low Low Dat Pro Fac Ext Cet Arc Hub Fac Upp Upp War Pro Fac Upp Upp Zhi Pro Res Gar Res Gar Res Qua Total Allies 30 | . . . . . . . . . . . . 11 4 2 . . . 1 . . . . . . . . 1 3 3 5 . Largest Group 7 | . . . . . . . . . . . . 7 7 7 . . . 1 . . . . . . . . 1 1 1 1 . Highest-Rated Group 615 | . . . . . . . . . . . . 237 615 615 . . . 29 . . . . . . . . 47 82 116 82 . Highest-Rated Ally 159 | . . . . . . . . . . . . 159 159 153 . . . 29 . . . . . . . . 47 82 116 82 . Total Orders 3 | . . . . . . . . . . . . . 3 . . . . . . . . . . . . . . . . . . STAY 2 | . . . . . . . . . . . . . 2 . . . . . . . . . . . . . . . . . . FOLLOW 1 | . . . . . . . . . . . . . 1 . . . . . . . . . . . . . . . . . . Ally Attacks 172 | . . . . . . . . . . . . 59 36 49 . . . 4 . . . . . . . . 3 4 6 11 . Total Damage 4854 | . . . . . . . . . . . . 1391 753 1704 . . . 76 . . . . . . . . 119 20 347 444 . Kills 34 | . . . . . . . . . . . . 14 6 10 . . . . . . . . . . . . . . 4 . . Allies Corrupted . | . . . . . . . . . . . . . . . . . . . . . . . . . . . . . . . . Allies Melted 1 | . . . . . . . . . . . . . . . . . . . . . . . . . . . . . . 1 . Intel | -11 -10 -10 -9 -9 -8 -7 -7 -7 -7 -6 -6 -6 -6 -6 -6 -5 -5 -5 -5 -4 -4 -4 -4 -4 -3 -3 -3 -3 -3 -2 -2 ------- Run | Yrd Mat Min Mat Min Mat Fac Low Low Dat Pro Fac Ext Cet Arc Hub Fac Upp Upp War Pro Fac Upp Upp Zhi Pro Res Gar Res Gar Res Qua Robot Analysis Total 12 | . . . 4 . 1 . . . . . 2 . . . . 1 . . . . . . . 4 . . . . . . . Derelict Logs Recovered 11 | . . . . 2 . . 2 . . . . . . . . . 2 . . 2 . 1 2 . . . . . . . . Drone Launches . | . . . . . . . . . . . . . . . . . . . . . . . . . . . . . . . . Drone Recoveries . | . . . . . . . . . . . . . . . . . . . . . . . . . . . . . . . . Exploration | -11 -10 -10 -9 -9 -8 -7 -7 -7 -7 -6 -6 -6 -6 -6 -6 -5 -5 -5 -5 -4 -4 -4 -4 -4 -3 -3 -3 -3 -3 -2 -2 ------------- Run | Yrd Mat Min Mat Min Mat Fac Low Low Dat Pro Fac Ext Cet Arc Hub Fac Upp Upp War Pro Fac Upp Upp Zhi Pro Res Gar Res Gar Res Qua Turns Passed 20272 | 57 293 125 673 176 491 2411 240 259 104 363 513 1581 362 117 698 920 562 338 1019 663 1038 341 556 242 553 1217 338 1202 608 1458 754 Spaces Moved 11929 | 43 251 145 470 148 265 1647 189 183 87 251 267 1102 172 55 301 454 322 179 595 391 543 208 338 147 340 645 156 553 302 759 421 Core 152 | 14 . . . . . . . . . . . 138 . . . . . . . . . . . . . . . . . . . Treads 6844 | . . . . . . . . . . . . . 135 55 301 454 322 179 595 391 543 208 338 147 340 645 156 553 302 759 421 Legs 660 | . . . . . 69 435 . . . . 43 113 . . . . . . . . . . . . . . . . . . . Wheels 4273 | 29 251 145 470 148 196 1212 189 183 87 251 224 851 37 . . . . . . . . . . . . . . . . . . Hover . | . . . . . . . . . . . . . . . . . . . . . . . . . . . . . . . . Flight . | . . . . . . . . . . . . . . . . . . . . . . . . . . . . . . . . Fastest Speed 50 | 50 80 80 80 105 105 95 101 130 115 130 101 50 160 160 160 160 160 160 160 160 160 160 160 160 160 160 160 160 152 152 152 Average Speed 138 | 70 80 80 103 105 111 111 116 130 116 130 139 115 163 160 160 160 160 160 160 160 160 160 160 160 160 160 160 160 154 152 152 Slowest Speed 190 | 80 80 80 125 105 130 140 120 130 130 130 190 175 175 160 160 160 160 160 160 160 160 160 160 160 160 160 160 160 160 152 152 Overloaded Moves . | . . . . . . . . . . . . . . . . . . . . . . . . . . . . . . . . Propulsion Burnouts . | . . . . . . . . . . . . . . . . . . . . . . . . . . . . . . . . Robots Hopped . | . . . . . . . . . . . . . . . . . . . . . . . . . . . . . . . . Cave-ins Triggered . | . . . . . . . . . . . . . . . . . . . . . . . . . . . . . . . . Teleports 1 | . . . . . . . . . . . . . . . . . . . . . . . . 1 . . . . . . . Exploration Rate (%) 46 | 4 43 40 45 57 25 40 48 44 72 57 12 81 68 85 43 25 48 39 78 62 23 39 50 60 67 28 26 26 42 30 68 Regions Visited 31 Branch Regions 19 Pre-discovered Areas 9 | . 1 . . . . . . . 1 . . . . . . . 1 . . 1 . 1 1 3 . . . . . . . Known Exits Taken 25 | . . . 1 . 1 1 1 1 1 1 1 1 1 1 1 1 1 1 1 1 1 1 1 1 1 1 . 1 . 1 . Unknown Exits Taken 4 | 1 1 1 . 1 . . . . . . . . . . . . . . . . . . . . . . . . . . . Scrap Searched 18 | . . 2 . 1 . . 2 2 . 2 . . . . . . . . . 1 . . 4 . 4 . . . . . . Spaces Dug 195 | . 3 . . . . 11 . 18 . 20 2 11 1 . 19 17 5 . 2 8 19 . 3 . . 20 4 22 2 3 5 Terrain Destroyed 1079 | . 4 . 23 . 77 53 . 18 . 104 2 18 1 29 366 56 11 12 15 14 85 . 4 . 4 20 9 40 36 68 10 Melee 89 | . . . . . . 2 . . . 2 2 . 1 . . 13 3 . . 2 13 . 2 . . 20 3 16 2 3 5 Projectile 192 | . 4 . . . . 3 . . . . . . . . 4 22 8 12 15 12 37 . 2 . 4 . 4 23 3 34 5 AOE 797 | . . . 23 . 77 48 . 18 . 102 . 18 . 29 362 21 . . . . 35 . . . . . 2 . 31 31 . Terrain Rammed . | . . . . . . . . . . . . . . . . . . . . . . . . . . . . . . . . Walls Destroyed . | . . . . . . . . . . . . . . . . . . . . . . . . . . . . . . . . Machines Disabled . | . . . . . . . . . . . . . . . . . . . . . . . . . . . . . . . . Actions | -11 -10 -10 -9 -9 -8 -7 -7 -7 -7 -6 -6 -6 -6 -6 -6 -5 -5 -5 -5 -4 -4 -4 -4 -4 -3 -3 -3 -3 -3 -2 -2 --------- Run | Yrd Mat Min Mat Min Mat Fac Low Low Dat Pro Fac Ext Cet Arc Hub Fac Upp Upp War Pro Fac Upp Upp Zhi Pro Res Gar Res Gar Res Qua Total 14093 | 62 294 155 581 158 382 1976 204 197 90 275 356 1309 243 70 431 568 348 206 634 415 625 214 348 153 342 750 211 721 376 905 494 Wait 306 | . 2 . 8 . 15 48 . . . 1 5 32 3 3 37 3 . 6 9 10 7 . . . . 12 28 23 20 15 19 Move 11897 | 42 250 144 469 147 264 1646 188 182 86 250 266 1101 171 54 300 453 321 178 595 390 542 207 337 146 339 644 154 552 300 758 421 Hop . | . . . . . . . . . . . . . . . . . . . . . . . . . . . . . . . . Pick Up 208 | 7 7 4 20 1 13 44 4 3 . 2 9 22 14 . 6 10 3 . 1 2 5 1 2 . . 9 1 6 3 6 3 Fast Attach 131 | 6 2 . 6 . 7 18 2 . 2 . 10 24 6 . 2 9 . . 4 1 1 2 2 4 . 5 . 4 2 7 5 Attach 114 | 1 2 1 10 . 9 31 1 1 . . 9 11 7 . 6 4 . . 1 2 2 . 1 . . 4 . 4 . 4 3 Detach 46 | . 1 . 3 . 3 8 . . . . 6 2 2 . 3 4 . . 3 . 2 . . 1 . 3 . 1 . 1 3 Swap 429 | 1 5 1 8 3 15 52 1 6 . 10 9 26 6 4 38 30 9 15 3 1 15 1 . . . 20 13 55 18 49 15 Drop 205 | 2 2 4 13 2 12 18 5 2 2 2 12 16 23 . 7 16 2 . 5 2 5 2 2 2 . 12 1 11 4 11 8 Fire 575 | 3 23 1 42 5 44 108 . 3 . 8 20 36 4 9 32 21 7 7 13 5 24 . 2 . 3 17 11 45 22 51 9 Melee 146 | . . . . . . 3 3 . . 2 10 9 7 . . 18 6 . . 2 21 1 2 . . 23 3 18 7 3 8 Ram 2 | . . . . . . . . . . . . 2 . . . . . . . . . . . . . . . . . . . Kick . | . . . . . . . . . . . . . . . . . . . . . . . . . . . . . . . . Crush 4 | . . . . . . . . . . . . . . . . . . . . . 1 . . . . 1 . 2 . . . Escape Stasis 14 | . . . . . . . . . . . . 14 . . . . . . . . . . . . . . . . . . . Rewire 14 | . . . . . . . . . . . . 14 . . . . . . . . . . . . . . . . . . . Trap 2 | . . . 2 . . . . . . . . . . . . . . . . . . . . . . . . . . . . Miscellaneous . | . . . . . . . . . . . . . . . . . . . . . . . . . . . . . . . . Route ------- -11/Scrapyard -10/Materials -10/Mines -9/Materials (discovered 3 exits: *Mat / *Min / Sto) -9/Mines -8/Materials (discovered 2 exits: *Fac x2) -7/Factory (discovered 2 exits: *Low x2) -7/Lower Caves -7/Lower Caves -7/Data Miner -6/Proximity Caves -6/Factory (discovered 4 exits: Low x2 / *Ext x2) -6/Extension (discovered 2 exits: *Fac / *Cet) -6/Cetus (discovered 2 exits: *Fac / *Arc) -6/Archives (discovered 2 exits: *Fac / *Hub) -6/Hub_04(d) -5/Factory (discovered 2 exits: *Upp x2) -5/Upper Caves -5/Upper Caves -5/Warlord -4/Proximity Caves -4/Factory (discovered 3 exits: *Upp x2 / Arm) -4/Upper Caves -4/Upper Caves (discovered 2 exits: *Res / *Zhi) -4/Zhirov -3/Proximity Caves -3/Research -3/Garrison (discovered 3 exits: *Res x3) -3/Research -3/Garrison -2/Research (discovered 2 exits: *Acc / *Qua) -2/Quarantine History --------- Turn | Location | Event 18 | -11/Scrapyard | Discovered new exit (range 16) 58 | -11/Scrapyard | Entered Materials 322 | -10/Materials | Discovered new exit (range 7) 351 | -10/Materials | Entered Mines 388 | -10/Mines | Found a hidden stash of uninstalled traps 468 | -10/Mines | Assembled infested the area 473 | -10/Mines | Assisted by a Guerilla fighting off Assembled 473 | -10/Mines | Discovered new exit (range 4) 476 | -10/Mines | Entered Materials 476 | -9/Materials | Evolved 2 slots: Propulsion x1, Utility x1 559 | -9/Materials | Lost 4 parts (1n1u2w) 579 | -9/Materials | Build established: Scavenger-Mutant 659 | -9/Materials | Discovered new exit (range 4) 967 | -9/Materials | Identified exit to Mines 967 | -9/Materials | Identified exit to Storage 1020 | -9/Materials | Build established: Mutant 1149 | -9/Materials | Entered Mines 1158 | -9/Mines | Learned 2 Materials zone layouts 1173 | -9/Mines | YI-UF0 nonchalantly dropped a Grenade Launcher on the ground 1185 | -9/Mines | Learned 2 Materials zone layouts 1312 | -9/Mines | Discovered new exit (range 8) 1325 | -9/Mines | Entered Materials 1325 | -8/Materials | Evolved 2 slots: Utility x2 1326 | -8/Materials | Identified exit to Factory 1647 | -8/Materials | Discovered exit to Factory (range 17) 1722 | -8/Materials | Lost 5 parts (1p3n1w) 1725 | -8/Materials | First assault squad dispatched 1816 | -8/Materials | Entered Factory 1816 | -7/Factory | Evolved 2 slots: Utility x1, Weapon x1 2206 | -7/Factory | Lost 5 parts (1p3n1u) 2288 | -7/Factory | Lost 3 parts (1u2w) 2583 | -7/Factory | Lost 9 parts (2p4n1u2w) 2935 | -7/Factory | Build established: Scavenger-Skirmisher 3641 | -7/Factory | Lost 3 parts (1p1n1u) 3662 | -7/Factory | System corruption reached 10% 3679 | -7/Factory | Core integrity fell below 50% 4048 | -7/Factory | Identified exit to Lower Caves 4227 | -7/Factory | Entered Lower Caves 4242 | -7/Lower Caves | Identified exit to Lower Caves 4427 | -7/Lower Caves | Learned Factory terminal intel 4467 | -7/Lower Caves | Entered another Lower Caves area 4514 | -7/Lower Caves | Build established: Scavenger-Assassin 4703 | -7/Lower Caves | Discovered new exit (range 19) 4725 | -7/Lower Caves | Identified exit to Data Miner 4726 | -7/Lower Caves | Entered Data Miner 4727 | -7/Data Miner | Discovered new exit (range 6) 4745 | -7/Data Miner | Met Data Miner 4771 | -7/Data Miner | Learned location of Section 7 (-2) 4771 | -7/Data Miner | Acquired the access code to Warlord's prototype stash 4785 | -7/Data Miner | Received God Mode back door access code from Data Miner 4829 | -7/Data Miner | Identified exit to Proximity Caves 4830 | -7/Data Miner | Entered Proximity Caves 5169 | -6/Proximity Caves | Discovered new exit (range 19) 5192 | -6/Proximity Caves | Identified exit to Factory 5193 | -6/Proximity Caves | Entered Factory 5193 | -6/Factory | Evolved 2 slots: Propulsion x1, Utility x1 5194 | -6/Factory | Loaded intel: 27 terminal locations 5235 | -6/Factory | Identified exit to Lower Caves 5235 | -6/Factory | Identified exit to Extension 5526 | -6/Factory | Lost 4 parts (3n1u) 5706 | -6/Factory | Entered Extension 5887 | -6/Extension | Rescued a captive Derelict 5888 | -6/Extension | Rescued a captive Derelict 5915 | -6/Extension | Rescued a captive Derelict 6023 | -6/Extension | Lost 6 allies 6058 | -6/Extension | Spotted B-75 Beast 6360 | -6/Extension | Destroyed B-75 Beast 6386 | -6/Extension | Lost 6 parts (4n1u1w) 6390 | -6/Extension | Spotted B-75 Beast 6428 | -6/Extension | Released all parts (9) 6451 | -6/Extension | Lost 11 parts (1p4n3u3w) 6619 | -6/Extension | Rescued A7 6736 | -6/Extension | Allies destroyed B-75 Beast 6941 | -6/Extension | Build established: Scavenger-Mutant 7015 | -6/Extension | Discovered new exit (range 16) 7017 | -6/Extension | Discovered new exit (range 15) 7104 | -6/Extension | Found Powered Armor 7121 | -6/Extension | Rescued a captive Derelict 7166 | -6/Extension | Rescued a captive Derelict 7280 | -6/Extension | Identified exit to Cetus 7287 | -6/Extension | Entered Cetus 7287 | -6/Cetus | Accompanied by 3 allies (A7) 7292 | -6/Cetus | Acquired a Cetus Manufacturing Module code from A7 7309 | -6/Cetus | Spotted Cetus Guard 7309 | -6/Cetus | Spotted Cetus Guard 7315 | -6/Cetus | Allies destroyed Cetus Guard 7315 | -6/Cetus | Spotted Cetus Guard 7318 | -6/Cetus | Destroyed Cetus Guard 7318 | -6/Cetus | Spotted Cetus Guard 7319 | -6/Cetus | Destroyed Cetus Guard 7322 | -6/Cetus | Destroyed Cetus Guard 7367 | -6/Cetus | System corruption reached 10% 7441 | -6/Cetus | Started Cetus Manufacturing Module 7466 | -6/Cetus | Manufactured an Enhanced Grunt 7470 | -6/Cetus | Escorted A7 to Cetus Mainframe 7491 | -6/Cetus | Manufactured an Enhanced Grunt 7498 | -6/Cetus | Discovered new exit (range 16) 7516 | -6/Cetus | Manufactured an Enhanced Grunt 7525 | -6/Cetus | Spotted Cetus Guard 7525 | -6/Cetus | Spotted Cetus Guard 7528 | -6/Cetus | Spotted Cetus Guard 7529 | -6/Cetus | Allies destroyed Cetus Guard 7529 | -6/Cetus | Spotted Cetus Guard 7530 | -6/Cetus | Destroyed Cetus Guard 7531 | -6/Cetus | Destroyed Cetus Guard 7534 | -6/Cetus | Destroyed Cetus Guard 7541 | -6/Cetus | Manufactured an Enhanced Grunt 7543 | -6/Cetus | Discovered new exit (range 15) 7543 | -6/Cetus | Cetus Manufacturing Module disabled 7558 | -6/Cetus | Met Revision 17 7644 | -6/Cetus | Identified exit to Archives 7649 | -6/Cetus | Entered Archives 7649 | -6/Archives | Accompanied by 7 allies (A7) 7654 | -6/Archives | Received a hacking code to weaken MAIN.C 7669 | -6/Archives | Met Zhirov 7675 | -6/Archives | Reinforcements dispatched to Archives 7682 | -6/Archives | Local machine network offline 7685 | -6/Archives | Discovered new exit (range 15) 7716 | -6/Archives | Discovered new exit (range 15) 7720 | -6/Archives | Reinforcements dispatched to Archives 7722 | -6/Archives | Zhirov warped through subspace 7740 | -6/Archives | Zhirov detonated Archives 7741 | -6/Archives | Core integrity fell below 50% 7754 | -6/Archives | Destroyed 9 combat bots 7762 | -6/Archives | Identified exit to Hub_04(d) 7766 | -6/Archives | Entered Hub_04(d) 7771 | -6/Hub_04(d) | Lost 7 allies 8115 | -6/Hub_04(d) | Discovered new exit (range 3) 8279 | -6/Hub_04(d) | Spotted B-75 Beast 8331 | -6/Hub_04(d) | Identified exit to Factory 8392 | -6/Hub_04(d) | Network Hub disabled 8392 | -6/Hub_04(d) | Network Hub disabled 8448 | -6/Hub_04(d) | System corruption reached 30% 8464 | -6/Hub_04(d) | Entered Factory 8464 | -5/Factory | Evolved 2 slots: Utility x1, Weapon x1 9055 | -5/Factory | Identified exit to Upper Caves 9064 | -5/Factory | First assault squad dispatched 9188 | -5/Factory | Build established: Scavenger-Assassin 9384 | -5/Factory | Entered Upper Caves 9932 | -5/Upper Caves | Discovered new exit (range 10) 9944 | -5/Upper Caves | Identified exit to Upper Caves 9946 | -5/Upper Caves | Entered another Upper Caves area 9948 | -5/Upper Caves | Attracted the attention of an 0b10 checkpoint 10196 | -5/Upper Caves | Build established: Scavenger-Skirmisher 10265 | -5/Upper Caves | Discovered new exit (range 8) 10275 | -5/Upper Caves | Identified exit to Warlord 10284 | -5/Upper Caves | Entered Warlord 10323 | -5/Warlord | Discovered new exit (range 15) 10802 | -5/Warlord | Warlord's base attacked by MAIN.C 11029 | -5/Warlord | Met Warlord 11043 | -5/Warlord | Opened Warlord's prototype stash 11051 | -5/Warlord | Found Prototype Processor 11051 | -5/Warlord | Identified Exp. Core Analyzer 11059 | -5/Warlord | Found Prototype Processor 11059 | -5/Warlord | Identified Exp. Targeting Computer 11068 | -5/Warlord | Found Prototype Reactor 11152 | -5/Warlord | Warlord forces counterattacked 11193 | -5/Warlord | Spotted Striker 11240 | -5/Warlord | Spotted Striker 11301 | -5/Warlord | Identified exit to Proximity Caves 11303 | -5/Warlord | Spotted Striker 11303 | -5/Warlord | Entered Proximity Caves 11307 | -4/Proximity Caves | Learned location of Armory (-4) 11315 | -4/Proximity Caves | Learned Research terminal intel 11581 | -4/Proximity Caves | Spotted B-86 Titan 11925 | -4/Proximity Caves | Discovered new exit (range 8) 11964 | -4/Proximity Caves | Identified exit to Factory 11966 | -4/Proximity Caves | Entered Factory 11966 | -4/Factory | Evolved 2 slots: Power x1, Utility x1 11967 | -4/Factory | Identified exit to Armory 11967 | -4/Factory | Identified Vortex Chain Reactor 11989 | -4/Factory | Build established: Scavenger-Assassin 12024 | -4/Factory | Spotted B-86 Titan 12420 | -4/Factory | Identified exit to Upper Caves 13004 | -4/Factory | Entered Upper Caves 13105 | -4/Upper Caves | Learned Factory security intel 13105 | -4/Upper Caves | Learned Factory terminal intel 13105 | -4/Upper Caves | Learned Armory terminal intel 13322 | -4/Upper Caves | Discovered new exit (range 15) 13343 | -4/Upper Caves | Identified exit to Upper Caves 13345 | -4/Upper Caves | Entered another Upper Caves area 13385 | -4/Upper Caves | Discovered new exit (range 7) 13412 | -4/Upper Caves | Found Alien Artifact 13412 | -4/Upper Caves | Identified Core Expander 13412 | -4/Upper Caves | Installed Core Expander, added new Utility slot 13523 | -4/Upper Caves | Learned location of Testing (-3) 13885 | -4/Upper Caves | Learned Research terminal intel 13891 | -4/Upper Caves | Discovered new exit (range 7) 13899 | -4/Upper Caves | Identified exit to Zhirov 13901 | -4/Upper Caves | Entered Zhirov 13901 | -4/Zhirov | Discovered new exit (range 3) 13968 | -4/Zhirov | Found Alien Artifact 13968 | -4/Zhirov | Identified Integrated Dissipator 13968 | -4/Zhirov | Installed Integrated Dissipator, increased core heat dissipation (+20) 13987 | -4/Zhirov | Found Alien Artifact 13987 | -4/Zhirov | Identified Transdimensional Reconstructor 13987 | -4/Zhirov | Warped through subspace 14091 | -4/Zhirov | Learned location of Quarantine (-2) 14091 | -4/Zhirov | Learned location of Command (-1) 14141 | -4/Zhirov | Identified exit to Proximity Caves 14143 | -4/Zhirov | Entered Proximity Caves 14152 | -3/Proximity Caves | Spotter reported a threat 14686 | -3/Proximity Caves | Discovered new exit (range 7) 14694 | -3/Proximity Caves | Identified exit to Research 14696 | -3/Proximity Caves | Entered Research 14696 | -3/Research | Evolved 2 slots: Utility x2 14697 | -3/Research | Loaded intel: 24 terminal locations 15544 | -3/Research | Spotted B-86 Titan 15597 | -3/Research | Found Prototype Launcher 15597 | -3/Research | Identified Hellfire Missile Launcher 15911 | -3/Research | Identified exit to Garrison 15913 | -3/Research | Entered Garrison 15976 | -3/Garrison | Triggered checkpoint 16071 | -3/Garrison | Spotted B-86 Titan 16079 | -3/Garrison | Triggered checkpoint 16102 | -3/Garrison | Triggered checkpoint 16127 | -3/Garrison | Destroyed B-86 Titan 16175 | -3/Garrison | Discovered new exit (range 56) 16175 | -3/Garrison | Discovered new exit (range 19) 16175 | -3/Garrison | Discovered new exit (range 51) 16191 | -3/Garrison | Build established: Scavenger-Tank 16201 | -3/Garrison | Installed Relay Interface Framework 16247 | -3/Garrison | Identified exit to Research 16251 | -3/Garrison | Entered Research 16252 | -3/Research | Loaded intel: 21 terminal locations 17251 | -3/Research | Found Prototype Processor 17255 | -3/Research | Identified Spectral Analyzer 17452 | -3/Research | Identified exit to Garrison 17453 | -3/Research | Entered Garrison 17516 | -3/Garrison | Expanded RIF knowledge: Watcher Feeds 17575 | -3/Garrison | Triggered checkpoint 17577 | -3/Garrison | Triggered checkpoint 17748 | -3/Garrison | System corruption reached 10% 17819 | -3/Garrison | Discovered new exit (range 11) 17833 | -3/Garrison | Identified exit to Research 17860 | -3/Garrison | Triggered checkpoint 17998 | -3/Garrison | Triggered checkpoint 18004 | -3/Garrison | Garrison Relay disabled 18061 | -3/Garrison | Entered Research 18061 | -2/Research | Warlord forces began assault on 0b10 18061 | -2/Research | Evolved 2 slots: Utility x1, Weapon x1 18171 | -2/Research | Research machine network offline 18389 | -2/Research | Spotted Striker 18395 | -2/Research | Spotted Striker 18409 | -2/Research | Destroyed Striker 18414 | -2/Research | Destroyed Striker 18539 | -2/Research | Lost 5 allies 18571 | -2/Research | Discovered new exit (range 12) 18635 | -2/Research | Discovered new exit (range 13) 18680 | -2/Research | Found Exp. Core Analyzer 18725 | -2/Research | Identified exit to Access 18736 | -2/Research | Build established: Scavenger-Skirmisher 18784 | -2/Research | Borebot progress halted 18789 | -2/Research | Lost 3 allies 18968 | -2/Research | Spotted Striker 18968 | -2/Research | Spotted Striker 18969 | -2/Research | Borebot progress halted 19018 | -2/Research | Lost 4 allies 19068 | -2/Research | Spotted Executioner 19072 | -2/Research | Spotted Executioner 19080 | -2/Research | Destroyed Executioner 19091 | -2/Research | Destroyed Executioner 19107 | -2/Research | Spotted Striker 19115 | -2/Research | Destroyed Striker 19147 | -2/Research | Destroyed 9 combat bots 19214 | -2/Research | Spotted Striker 19238 | -2/Research | Destroyed Striker 19352 | -2/Research | Met up with Warlord 19353 | -2/Research | Warlord invited to help at Command 19517 | -2/Research | Identified exit to Quarantine 19519 | -2/Research | Entered Quarantine 19610 | -2/Quarantine | Spotted Alpha 7 19659 | -2/Quarantine | Found Alien Energy Cannon 19659 | -2/Quarantine | Identified Core Cannon 19967 | -2/Quarantine | Found Alien Artifact 20058 | -2/Quarantine | Cryocooling Duct disabled 20073 | -2/Quarantine | Ambient heat levels rising (+20) 20073 | -2/Quarantine | Non-combat units ordered to evacuate 20152 | -2/Quarantine | Discovered exit to Access (range 20) 20195 | -2/Quarantine | Identified Core Reset Matrix 20271 | -2/Quarantine | Used Core Reset Matrix 20273 | -2/Quarantine | Self-destructed Last Messages --------------- 20236_ Slug penetrates H-88 Terminator. 20236_ H-88 Terminator suffers critical hit (Destroy). 20236_ H-88 Terminator destroyed. 20237_ Activated siege mode. 20244_ System corrupted: Matter fused (-10). 20245_ Ended siege mode. 20250_ Acquired KE Penetrator. 20251_ Acquired 90 matter. 20252_ Slug penetrates Wall. 20256_ Acquired 79 matter. 20259_ Dropped Biometal Heavy Treads. 20259_ Dropped Enh. Coil Gun. 20260_ Acquired KE Penetrator. 20264_ Acquired Biometal Heavy Treads. 20267_ Acquired 15 matter. 20270_ Dropped Core Reset Matrix. 20271_ Acquired Core Reset Matrix. 20271_ Wiping memory... 20271_ Relay Coupler [NC] fries itself. 20273_ CORE RESET Map ----- +----------------------------------------------------+ | ?????????????????????????????????????????????????? | | ?????????????????????????????????????????????????? | | ?????????????????????????????????????????????????? | | ?????????????????????????????????????????????????? | | ?????????????????????????????????????????????????? | | ?????????????????????????????????????????????????? | | ?????????????????????????????????????????????????? | | ?????????????????????????????????????????????????? | | ?????????????????????????????????????????????????? | | ?????????????????????????????????????????????????? | | ?????????????????????????????????????????????????? | | ?????????????????????????????????????????????????? | | ?????????????????????????????????????????????????? | | ?????????????????????????????????????????????????? | | ?????????????????????????????????????????????????? | | ?????????????????????????????????????????????????? | | ?????????????????????????????????????????????????? | | ?????????????????????????????????????????????????? | | ?????????????????????????????????????????????????? | | ?????????????????????????????????????????????????? | | ?????????????????????????????????????????????????? | | ?????????????????????????????????????????????????? | | ????????????????# ??????????????????#########???? | | ???????####;##### ############ ??? | | ??? ; ??????? | | ??? [@= +????????????????? | | ??? !* +????????????????? | | ???? ! ; ????????????? | | ?????##################### #### ???????? | | ?????????????????????????? #?????########??????? | | ?????????????????????????? #???????????????????? | | ??????????????????????????####???????????????????? | | ?????????????????????????????????????????????????? | | ?????????????????????????????????????????????????? | | ?????????????????????????????????????????????????? | | ?????????????????????????????????????????????????? | | ?????????????????????????????????????????????????? | | ?????????????????????????????????????????????????? | | ?????????????????????????????????????????????????? | | ?????????????????????????????????????????????????? | | ?????????????????????????????????????????????????? | | ?????????????????????????????????????????????????? | | ?????????????????????????????????????????????????? | | ?????????????????????????????????????????????????? | | ?????????????????????????????????????????????????? | | ?????????????????????????????????????????????????? | | ?????????????????????????????????????????????????? | | ?????????????????????????????????????????????????? | | ?????????????????????????????????????????????????? | | ?????????????????????????????????????????????????? | +----------------------------------------------------+ Best States ------------- Heat Dissipation 88 Energy Generation 55 Energy Capacity 700 Matter Stores 300 Matter Capacity 300 Sight Range 23 Robot Scan Range 18 Terrain Scan Range 16 Terrain Scan Density 110 Jamming Range 12 Cloak Strength 3 Armor Coverage 900 Resistance: KI 25 Resistance: TH 30 Resistance: EX 50 Utility Shielding 90 Weapon Cycling 15 Evasion (%) 55 Targeting Accuracy 18 Target Analysis 8 Core Analysis 8 Armor Integrity Analysis 30 Recoil Reduction 4 Kinecelleration 40 Offensive Hacking 11 Relay Coupler Types 1 Relay Coupler Value 25 Item Schematics ----------------- None Robot Schematics ------------------ None Fabricated ------------ Nothing Alien Tech Used ----------------- Core Expander Integrated Dissipator Transdimensional Reconstructor Core Cannon Core Reset Matrix Achievements -------------- None Challenges ------------ None Game ------ Seed GlidesysArmoredMace Manual? 0 Play Time 04:23:56 Cumulative 1033.3 hours Start 2024.02.11 @ 16:57:00 End 2024.02.12 @ 02:16:52 Sessions 7 Manual Loads 0 Difficulty Rogue Special Mode None Game No. 519 Rogue 392 Adventurer 125 Explorer 2 Win Type - Total 123 Types 97/9/8/3/3/0/0/2/1 Lore% 82 Gallery% 89 Achievement% 84 Wizard Run 0 Options --------- ASCII 0 Keyboard 1 Movement Numpad Keybinds 0 Fullscreen 1 Font 36/TerminusFine Map View 76x50 Zoom Use 0% Tactical HUD 1 Map Filters NONE Filters NONE Steam 1 RUN: d94f3ed3-a0fc-4272-a6c5-9171a1debfd0